[Event "Titled Tuesday Blitz April 4 Early 2023"]
[White "Xiong, Jeffery"]
[Black "Kleiman, Jake"]
[WhiteFideId "2047640"]
[BlackFideId "2020041"]
[WhiteElo "2726"]
[BlackElo "2616"]
[Result "1/2-1/2"]
[Round "10"]
[TimeControl "180+2"]
[Date "2023.04.04"]
[WhiteClock "0:02:14"]
[BlackClock "0:00:38"]

1. e4 {[%clk 0:03:00]}  e5 {[%clk 0:02:58]} 2. Nf3 {[%clk 0:02:59]}  Nc6 {[%clk 0:02:59]} 3. Nc3 {[%clk 0:03:00]}  Nf6 {[%clk 0:02:59]} 4. d4 {[%clk 0:03:00]}  exd4 {[%clk 0:03:00]} 5. Nxd4 {[%clk 0:03:01]}  Bb4 {[%clk 0:03:00]} 6. Nxc6 {[%clk 0:03:01]}  bxc6 {[%clk 0:03:00]} 7. Bd3 {[%clk 0:03:02]}  O-O {[%clk 0:03:00]} 8. O-O {[%clk 0:03:03]}  d5 {[%clk 0:03:01]} 9. exd5 {[%clk 0:03:04]}  cxd5 {[%clk 0:03:02]} 10. h3 {[%clk 0:03:04]}  h6 {[%clk 0:03:02]} 11. Qf3 {[%clk 0:03:05]}  Be6 {[%clk 0:03:00]} 12. Bf4 {[%clk 0:03:05]}  Bd6 {[%clk 0:03:00]} 13. Nb5 {[%clk 0:03:04]}  Bxf4 {[%clk 0:02:58]} 14. Qxf4 {[%clk 0:03:05]}  c6 {[%clk 0:02:54]} 15. Nd4 {[%clk 0:03:03]}  Bd7 {[%clk 0:02:50]} 16. b4 {[%clk 0:03:02]}  a5 {[%clk 0:02:47]} 17. a3 {[%clk 0:02:51]}  Qb8 {[%clk 0:02:44]} 18. Qxb8 {[%clk 0:02:49]}  Rfxb8 {[%clk 0:02:45]} 19. c3 {[%clk 0:02:49]}  Kf8 {[%clk 0:02:44]} 20. f3 {[%clk 0:02:47]}  Ke7 {[%clk 0:02:34]} 21. Nb3 {[%clk 0:02:47]}  axb4 {[%clk 0:02:33]} 22. axb4 {[%clk 0:02:48]}  Kd6 {[%clk 0:02:33]} 23. Kf2 {[%clk 0:02:48]}  Ne8 {[%clk 0:02:29]} 24. Ke3 {[%clk 0:02:46]}  Nc7 {[%clk 0:02:29]} 25. Nd4 {[%clk 0:02:43]}  g6 {[%clk 0:02:28]} 26. Rfe1 {[%clk 0:02:42]}  Rxa1 {[%clk 0:02:22]} 27. Rxa1 {[%clk 0:02:42]}  Ra8 {[%clk 0:02:23]} 28. Rxa8 {[%clk 0:02:40]}  Nxa8 {[%clk 0:02:23]} 29. Nb3 {[%clk 0:02:41]}  Nc7 {[%clk 0:02:21]} 30. Nc5 {[%clk 0:02:41]}  Bc8 {[%clk 0:02:21]} 31. Kd4 {[%clk 0:02:41]}  Ne6+ {[%clk 0:02:11]} 32. Nxe6 {[%clk 0:02:41]}  Bxe6 {[%clk 0:02:12]} 33. f4 {[%clk 0:02:41]}  Bd7 {[%clk 0:01:59]} 34. g4 {[%clk 0:02:36]}  Bc8 {[%clk 0:01:58]} 35. Bc2 {[%clk 0:02:35]}  g5 {[%clk 0:01:52]} 36. f5 {[%clk 0:02:26]}  Ba6 {[%clk 0:01:48]} 37. Bd1 {[%clk 0:02:25]}  Bf1 {[%clk 0:01:45]} 38. Bf3 {[%clk 0:02:23]}  Bxh3 {[%clk 0:01:43]} 39. c4 {[%clk 0:02:23]}  dxc4 {[%clk 0:01:41]} 40. Kxc4 {[%clk 0:02:24]}  f6 {[%clk 0:01:26]} 41. Kd4 {[%clk 0:02:23]}  Bf1 {[%clk 0:01:17]} 42. Bd1 {[%clk 0:02:17]}  Ba6 {[%clk 0:01:13]} 43. Bf3 {[%clk 0:02:17]}  Bc8 {[%clk 0:01:11]} 44. Bd1 {[%clk 0:02:16]}  Bd7 {[%clk 0:01:10]} 45. Bf3 {[%clk 0:02:16]}  Be8 {[%clk 0:01:10]} 46. Be2 {[%clk 0:02:15]}  Bf7 {[%clk 0:01:10]} 47. Bf3 {[%clk 0:02:16]}  Bb3 {[%clk 0:01:10]} 48. Be2 {[%clk 0:02:15]}  Bd5 {[%clk 0:01:10]} 49. Bd1 {[%clk 0:02:15]}  Ba2 {[%clk 0:01:06]} 50. Bf3 {[%clk 0:02:15]}  Bb3 {[%clk 0:01:06]} 51. Be2 {[%clk 0:02:15]}  Bc2 {[%clk 0:01:05]} 52. Bf3 {[%clk 0:02:14]}  Bb3 {[%clk 0:00:38]} 1/2-1/2


[Site "https://www.chess.com"]

[Event "Titled Tuesday Blitz April 4 Early 2023"]
[White "Yeletsky, Ivan"]
[Black "Janaszak, Dawid"]
[WhiteFideId "24180327"]
[BlackFideId "1119206"]
[WhiteElo "2422"]
[BlackElo "2220"]
[Result "1-0"]
[Round "10"]
[TimeControl "180+2"]
[Date "2023.04.04"]
[WhiteClock "0:00:17"]
[BlackClock "0:00:07"]

1. d4 {[%clk 0:02:55]}  Nf6 {[%clk 0:02:56]} 2. c4 {[%clk 0:02:55]}  e6 {[%clk 0:02:57]} 3. Nc3 {[%clk 0:02:54]}  Bb4 {[%clk 0:02:55]} 4. Qc2 {[%clk 0:02:55]}  d5 {[%clk 0:02:53]} 5. Nf3 {[%clk 0:02:54]}  O-O {[%clk 0:02:52]} 6. Bg5 {[%clk 0:02:54]}  h6 {[%clk 0:02:52]} 7. Bxf6 {[%clk 0:02:54]}  Qxf6 {[%clk 0:02:53]} 8. a3 {[%clk 0:02:55]}  Bxc3+ {[%clk 0:02:53]} 9. Qxc3 {[%clk 0:02:55]}  dxc4 {[%clk 0:02:50]} 10. Qxc4 {[%clk 0:02:56]}  b6 {[%clk 0:02:50]} 11. Qxc7 {[%clk 0:02:54]}  Ba6 {[%clk 0:02:43]} 12. e3 {[%clk 0:02:54]}  Rc8 {[%clk 0:02:41]} 13. Qe5 {[%clk 0:02:46]}  Bxf1 {[%clk 0:02:40]} 14. Qxf6 {[%clk 0:02:40]}  gxf6 {[%clk 0:02:41]} 15. Kxf1 {[%clk 0:02:36]}  Rc2 {[%clk 0:02:41]} 16. Rb1 {[%clk 0:02:37]}  Nd7 {[%clk 0:02:32]} 17. Ne1 {[%clk 0:02:37]}  Rd2 {[%clk 0:02:28]} 18. Nf3 {[%clk 0:02:38]}  Rc2 {[%clk 0:02:29]} 19. g3 {[%clk 0:02:38]}  Rac8 {[%clk 0:02:28]} 20. Kg2 {[%clk 0:02:38]}  b5 {[%clk 0:02:25]} 21. Rhd1 {[%clk 0:02:35]}  Nb6 {[%clk 0:02:23]} 22. Ne1 {[%clk 0:02:36]}  R2c6 {[%clk 0:02:13]} 23. Nd3 {[%clk 0:02:36]}  Na4 {[%clk 0:02:10]} 24. Rd2 {[%clk 0:02:33]}  a5 {[%clk 0:02:06]} 25. Rbd1 {[%clk 0:02:21]}  Kf8 {[%clk 0:01:59]} 26. Kf3 {[%clk 0:02:06]}  Kg7 {[%clk 0:01:47]} 27. b3 {[%clk 0:01:59]}  Nb6 {[%clk 0:01:42]} 28. Nc5 {[%clk 0:01:56]}  f5 {[%clk 0:01:34]} 29. h3 {[%clk 0:01:51]}  R8c7 {[%clk 0:01:29]} 30. g4 {[%clk 0:01:48]}  fxg4+ {[%clk 0:01:30]} 31. hxg4 {[%clk 0:01:49]}  Nd7 {[%clk 0:01:22]} 32. Nxd7 {[%clk 0:01:24]}  Rxd7 {[%clk 0:01:21]} 33. d5 {[%clk 0:01:25]}  exd5 {[%clk 0:00:50]} 34. Rxd5 {[%clk 0:01:26]}  Rb7 {[%clk 0:00:44]} 35. R1d3 {[%clk 0:01:22]}  Rbb6 {[%clk 0:00:34]} 36. Kg3 {[%clk 0:01:14]}  Rc1 {[%clk 0:00:33]} 37. a4 {[%clk 0:01:05]}  bxa4 {[%clk 0:00:28]} 38. bxa4 {[%clk 0:01:06]}  Rg1+ {[%clk 0:00:28]} 39. Kf3 {[%clk 0:01:06]}  Rf6+ {[%clk 0:00:26]} 40. Rf5 {[%clk 0:01:05]}  Rxf5+ {[%clk 0:00:25]} 41. gxf5 {[%clk 0:01:05]}  Ra1 {[%clk 0:00:23]} 42. Rd4 {[%clk 0:01:05]}  Kf6 {[%clk 0:00:22]} 43. Kf4 {[%clk 0:00:59]}  Ra2 {[%clk 0:00:16]} 44. f3 {[%clk 0:00:58]}  Ra3 {[%clk 0:00:16]} 45. e4 {[%clk 0:00:58]}  h5 {[%clk 0:00:16]} 46. e5+ {[%clk 0:00:48]}  Ke7 {[%clk 0:00:16]} 47. f6+ {[%clk 0:00:45]}  Ke8 {[%clk 0:00:16]} 48. Rc4 {[%clk 0:00:40]}  Kd7 {[%clk 0:00:13]} 49. Rd4+ {[%clk 0:00:31]}  Ke8 {[%clk 0:00:13]} 50. Rd6 {[%clk 0:00:32]}  Rxa4+ {[%clk 0:00:12]} 51. Kf5 {[%clk 0:00:32]}  h4 {[%clk 0:00:12]} 52. Ra6 {[%clk 0:00:33]}  h3 {[%clk 0:00:09]} 53. Ra8+ {[%clk 0:00:33]}  Kd7 {[%clk 0:00:10]} 54. Rh8 {[%clk 0:00:21]}  Ra3 {[%clk 0:00:10]} 55. Rxh3 {[%clk 0:00:18]}  a4 {[%clk 0:00:11]} 56. Rh7 {[%clk 0:00:17]}  Rxf3+ {[%clk 0:00:10]} 57. Ke4 {[%clk 0:00:17]}  Rf1 {[%clk 0:00:10]} 58. Rxf7+ {[%clk 0:00:18]}  Kc6 {[%clk 0:00:10]} 59. Ra7 {[%clk 0:00:17]}  Kb5 {[%clk 0:00:09]} 60. Kd5 {[%clk 0:00:16]}  Kb4 {[%clk 0:00:06]} 61. f7 {[%clk 0:00:15]}  a3 {[%clk 0:00:06]} 62. e6 {[%clk 0:00:16]}  Rd1+ {[%clk 0:00:06]} 63. Ke5 {[%clk 0:00:16]}  Re1+ {[%clk 0:00:06]} 64. Kf6 {[%clk 0:00:16]}  Rf1+ {[%clk 0:00:07]} 65. Ke7 {[%clk 0:00:17]} 1-0


[Site "https://www.chess.com"]

[Event "Titled Tuesday Blitz April 4 Early 2023"]
[White "Csonka, Balazs"]
[Black "Orlov, Georgi"]
[WhiteFideId "742910"]
[BlackFideId "2011271"]
[WhiteElo "2404"]
[BlackElo "2578"]
[Result "1-0"]
[Round "10"]
[TimeControl "180+2"]
[Date "2023.04.04"]
[WhiteClock "0:00:02"]
[BlackClock "0:00:04"]

1. e4 {[%clk 0:03:00]}  d6 {[%clk 0:02:56]} 2. d4 {[%clk 0:02:59]}  Nf6 {[%clk 0:02:56]} 3. f3 {[%clk 0:02:56]}  c5 {[%clk 0:02:54]} 4. dxc5 {[%clk 0:02:46]}  Qa5+ {[%clk 0:02:53]} 5. Nc3 {[%clk 0:02:45]}  Qxc5 {[%clk 0:02:53]} 6. Qd3 {[%clk 0:02:38]}  Nc6 {[%clk 0:02:50]} 7. Be3 {[%clk 0:02:15]}  Qa5 {[%clk 0:02:48]} 8. O-O-O {[%clk 0:02:15]}  Be6 {[%clk 0:02:45]} 9. Kb1 {[%clk 0:02:11]}  Rc8 {[%clk 0:02:38]} 10. Qd2 {[%clk 0:01:58]}  g6 {[%clk 0:02:30]} 11. Nge2 {[%clk 0:01:58]}  Bg7 {[%clk 0:02:29]} 12. Nf4 {[%clk 0:01:47]}  O-O {[%clk 0:02:19]} 13. Nxe6 {[%clk 0:01:41]}  fxe6 {[%clk 0:02:18]} 14. Bc4 {[%clk 0:01:42]}  Kf7 {[%clk 0:02:00]} 15. Bb3 {[%clk 0:01:36]}  Ne5 {[%clk 0:01:57]} 16. Ne2 {[%clk 0:01:05]}  Qxd2 {[%clk 0:01:54]} 17. Bxd2 {[%clk 0:01:02]}  Nc4 {[%clk 0:01:51]} 18. Bc1 {[%clk 0:01:01]}  Nd7 {[%clk 0:01:50]} 19. c3 {[%clk 0:00:49]}  b5 {[%clk 0:01:46]} 20. Nd4 {[%clk 0:00:46]}  a6 {[%clk 0:01:45]} 21. Rhf1 {[%clk 0:00:42]}  Nc5 {[%clk 0:01:44]} 22. Bc2 {[%clk 0:00:41]}  e5 {[%clk 0:01:24]} 23. Nb3 {[%clk 0:00:34]}  Na4 {[%clk 0:01:18]} 24. Nd2 {[%clk 0:00:32]}  Ne3 {[%clk 0:01:16]} 25. Nb3 {[%clk 0:00:12]}  Nxf1 {[%clk 0:01:13]} 26. Rxf1 {[%clk 0:00:12]}  e6 {[%clk 0:01:11]} 27. Na5 {[%clk 0:00:11]}  Nc5 {[%clk 0:01:07]} 28. Rd1 {[%clk 0:00:11]}  Rfd8 {[%clk 0:01:07]} 29. b4 {[%clk 0:00:08]}  Na4 {[%clk 0:01:07]} 30. Bxa4 {[%clk 0:00:08]}  bxa4 {[%clk 0:01:07]} 31. c4 {[%clk 0:00:09]}  Rd7 {[%clk 0:01:02]} 32. a3 {[%clk 0:00:08]}  Bf6 {[%clk 0:00:56]} 33. Be3 {[%clk 0:00:08]}  Bd8 {[%clk 0:00:56]} 34. c5 {[%clk 0:00:04]}  Bxa5 {[%clk 0:00:56]} 35. bxa5 {[%clk 0:00:05]}  Rb7+ {[%clk 0:00:54]} 36. Kc2 {[%clk 0:00:06]}  dxc5 {[%clk 0:00:54]} 37. Rd6 {[%clk 0:00:06]}  Rb3 {[%clk 0:00:54]} 38. Bc1 {[%clk 0:00:06]}  Ra8 {[%clk 0:00:52]} 39. Rc6 {[%clk 0:00:07]}  Rb5 {[%clk 0:00:48]} 40. Bd2 {[%clk 0:00:06]}  Ra7 {[%clk 0:00:42]} 41. Bc3 {[%clk 0:00:05]}  Rb3 {[%clk 0:00:39]} 42. Bb2 {[%clk 0:00:04]}  Rab7 {[%clk 0:00:39]} 43. Bc1 {[%clk 0:00:04]}  Ra7 {[%clk 0:00:37]} 44. Rxc5 {[%clk 0:00:04]}  Rb5 {[%clk 0:00:33]} 45. Rc6 {[%clk 0:00:03]}  Rxa5 {[%clk 0:00:31]} 46. Bd2 {[%clk 0:00:03]}  Rb5 {[%clk 0:00:31]} 47. Bb4 {[%clk 0:00:03]}  a5 {[%clk 0:00:31]} 48. Bc3 {[%clk 0:00:04]}  Rab7 {[%clk 0:00:29]} 49. g4 {[%clk 0:00:03]}  Rb3 {[%clk 0:00:29]} 50. Bxe5 {[%clk 0:00:02]}  Rxf3 {[%clk 0:00:28]} 51. h4 {[%clk 0:00:02]}  Rxa3 {[%clk 0:00:28]} 52. h5 {[%clk 0:00:02]}  Re3 {[%clk 0:00:27]} 53. Rc8 {[%clk 0:00:01]}  gxh5 {[%clk 0:00:26]} 54. gxh5 {[%clk 0:00:01]}  Rxe4 {[%clk 0:00:26]} 55. Ba1 {[%clk 0:00:02]}  a3 {[%clk 0:00:26]} 56. Rh8 {[%clk 0:00:02]}  Reb4 {[%clk 0:00:18]} 57. Rxh7+ {[%clk 0:00:02]}  Kf8 {[%clk 0:00:19]} 58. Rh8+ {[%clk 0:00:03]}  Ke7 {[%clk 0:00:19]} 59. h6 {[%clk 0:00:03]}  Kd6 {[%clk 0:00:19]} 60. h7 {[%clk 0:00:03]}  Rh4 {[%clk 0:00:19]} 61. Rd8+ {[%clk 0:00:03]}  Kc6 {[%clk 0:00:19]} 62. h8=Q {[%clk 0:00:04]}  Rxh8 {[%clk 0:00:18]} 63. Rxh8 {[%clk 0:00:04]}  Kd5 {[%clk 0:00:18]} 64. Rh5+ {[%clk 0:00:04]}  Kc4 {[%clk 0:00:17]} 65. Rxa5 {[%clk 0:00:04]}  Rh7 {[%clk 0:00:16]} 66. Ra4+ {[%clk 0:00:03]}  Kd5 {[%clk 0:00:16]} 67. Rxa3 {[%clk 0:00:04]}  Rh2+ {[%clk 0:00:16]} 68. Kb1 {[%clk 0:00:03]}  Rh1+ {[%clk 0:00:17]} 69. Ka2 {[%clk 0:00:02]}  Rh2+ {[%clk 0:00:17]} 70. Bb2 {[%clk 0:00:03]}  Kd6 {[%clk 0:00:17]} 71. Ra6+ {[%clk 0:00:02]}  Kd5 {[%clk 0:00:17]} 72. Ra5+ {[%clk 0:00:03]}  Kd6 {[%clk 0:00:17]} 73. Kb3 {[%clk 0:00:03]}  Rh3+ {[%clk 0:00:17]} 74. Bc3 {[%clk 0:00:03]}  Rf3 {[%clk 0:00:15]} 75. Kc4 {[%clk 0:00:03]}  Ke7 {[%clk 0:00:13]} 76. Ra7+ {[%clk 0:00:02]}  Kd6 {[%clk 0:00:12]} 77. Ra6+ {[%clk 0:00:02]}  Ke7 {[%clk 0:00:12]} 78. Be5 {[%clk 0:00:03]}  Kf7 {[%clk 0:00:07]} 79. Kd4 {[%clk 0:00:02]}  Rf1 {[%clk 0:00:07]} 80. Ke4 {[%clk 0:00:02]}  Re1+ {[%clk 0:00:07]} 81. Kf4 {[%clk 0:00:02]}  Rf1+ {[%clk 0:00:06]} 82. Kg4 {[%clk 0:00:02]}  Rf5 {[%clk 0:00:06]} 83. Ra7+ {[%clk 0:00:02]}  Kg6 {[%clk 0:00:07]} 84. Bf4 {[%clk 0:00:02]}  Rd5 {[%clk 0:00:06]} 85. Ra6 {[%clk 0:00:02]}  Kf6 {[%clk 0:00:06]} 86. Bg3 {[%clk 0:00:03]}  Kg6 {[%clk 0:00:06]} 87. Rxe6+ {[%clk 0:00:02]}  Kf7 {[%clk 0:00:06]} 88. Re3 {[%clk 0:00:03]}  Rd4+ {[%clk 0:00:06]} 89. Kf5 {[%clk 0:00:02]}  Rd5+ {[%clk 0:00:06]} 90. Be5 {[%clk 0:00:02]}  Rd1 {[%clk 0:00:06]} 91. Rh3 {[%clk 0:00:02]}  Rf1+ {[%clk 0:00:05]} 92. Bf4 {[%clk 0:00:03]}  Rg1 {[%clk 0:00:05]} 93. Ra3 {[%clk 0:00:03]}  Rd1 {[%clk 0:00:04]} 94. Ra7+ {[%clk 0:00:03]}  Ke8 {[%clk 0:00:04]} 95. Ke6 {[%clk 0:00:03]}  Kf8 {[%clk 0:00:04]} 96. Be5 {[%clk 0:00:02]}  Kg8 {[%clk 0:00:04]} 97. Rg7+ {[%clk 0:00:02]}  Kf8 {[%clk 0:00:04]} 98. Rg4 {[%clk 0:00:02]}  Re1 {[%clk 0:00:04]} 99. Rb4 {[%clk 0:00:02]}  Kg8 {[%clk 0:00:04]} 100. Rh4 {[%clk 0:00:02]} 1-0


[Site "https://www.chess.com"]

[Event "Titled Tuesday Blitz April 4 Early 2023"]
[White "TheKnightOfBosnia"]
[Black "Domingo Nunez, Alejandro"]
[BlackFideId "22245561"]
[WhiteElo "2513"]
[BlackElo "2291"]
[Result "0-1"]
[Round "10"]
[TimeControl "180+2"]
[Date "2023.04.04"]
[WhiteClock "0:00:04"]
[BlackClock "0:00:08"]

1. e4 {[%clk 0:03:00]}  g6 {[%clk 0:03:00]} 2. d4 {[%clk 0:03:00]}  Bg7 {[%clk 0:03:01]} 3. Nf3 {[%clk 0:03:01]}  c6 {[%clk 0:03:01]} 4. h3 {[%clk 0:02:59]}  d5 {[%clk 0:03:02]} 5. e5 {[%clk 0:02:59]}  f6 {[%clk 0:03:02]} 6. exf6 {[%clk 0:02:58]}  Nxf6 {[%clk 0:03:02]} 7. Bf4 {[%clk 0:02:57]}  O-O {[%clk 0:03:02]} 8. Nbd2 {[%clk 0:02:53]}  Nbd7 {[%clk 0:02:47]} 9. c3 {[%clk 0:02:49]}  Nh5 {[%clk 0:02:13]} 10. Be3 {[%clk 0:02:46]}  e5 {[%clk 0:02:12]} 11. dxe5 {[%clk 0:02:47]}  Nxe5 {[%clk 0:02:12]} 12. Nxe5 {[%clk 0:02:47]}  Bxe5 {[%clk 0:02:13]} 13. Nf3 {[%clk 0:02:44]}  Bg7 {[%clk 0:02:12]} 14. Bd3 {[%clk 0:02:41]}  Nf4 {[%clk 0:02:08]} 15. Bxf4 {[%clk 0:02:31]}  Rxf4 {[%clk 0:02:08]} 16. O-O {[%clk 0:02:22]}  Qf6 {[%clk 0:02:07]} 17. Nd2 {[%clk 0:01:58]}  Qg5 {[%clk 0:01:54]} 18. Kh2 {[%clk 0:01:53]}  Be5 {[%clk 0:01:49]} 19. Kh1 {[%clk 0:01:41]}  Qh6 {[%clk 0:00:41]} 20. Qe2 {[%clk 0:00:58]}  Bd6 {[%clk 0:00:40]} 21. Qe3 {[%clk 0:00:27]}  Bd7 {[%clk 0:00:25]} 22. Nf3 {[%clk 0:00:18]}  Re8 {[%clk 0:00:24]} 23. Qd2 {[%clk 0:00:13]}  Bxh3 {[%clk 0:00:24]} 24. Nh2 {[%clk 0:00:13]}  Bxg2+ {[%clk 0:00:18]} 25. Kxg2 {[%clk 0:00:13]}  Rg4+ {[%clk 0:00:17]} 26. Nxg4 {[%clk 0:00:14]}  Qxd2 {[%clk 0:00:18]} 27. Nf6+ {[%clk 0:00:14]}  Kf7 {[%clk 0:00:17]} 28. Nxe8 {[%clk 0:00:14]}  Qg5+ {[%clk 0:00:16]} 29. Kf3 {[%clk 0:00:13]}  Qh5+ {[%clk 0:00:16]} 30. Ke3 {[%clk 0:00:13]}  Kxe8 {[%clk 0:00:16]} 31. Rae1 {[%clk 0:00:13]}  Kd7 {[%clk 0:00:16]} 32. Kd2 {[%clk 0:00:13]}  Bf4+ {[%clk 0:00:17]} 33. Kc2 {[%clk 0:00:13]}  Qf3 {[%clk 0:00:16]} 34. Be2 {[%clk 0:00:12]}  Qh3 {[%clk 0:00:17]} 35. Rh1 {[%clk 0:00:12]}  Qf5+ {[%clk 0:00:17]} 36. Bd3 {[%clk 0:00:12]}  Qf7 {[%clk 0:00:17]} 37. f3 {[%clk 0:00:12]}  h5 {[%clk 0:00:16]} 38. Re2 {[%clk 0:00:11]}  g5 {[%clk 0:00:15]} 39. Rhe1 {[%clk 0:00:10]}  h4 {[%clk 0:00:15]} 40. Re7+ {[%clk 0:00:09]}  Qxe7 {[%clk 0:00:15]} 41. Bf5+ {[%clk 0:00:09]}  Kd6 {[%clk 0:00:15]} 42. Rxe7 {[%clk 0:00:10]}  Kxe7 {[%clk 0:00:16]} 43. Kd3 {[%clk 0:00:10]}  Kd6 {[%clk 0:00:16]} 44. Bg4 {[%clk 0:00:09]}  b6 {[%clk 0:00:16]} 45. c4 {[%clk 0:00:08]}  Kc5 {[%clk 0:00:15]} 46. cxd5 {[%clk 0:00:06]}  cxd5 {[%clk 0:00:16]} 47. a3 {[%clk 0:00:06]}  a5 {[%clk 0:00:15]} 48. Kc3 {[%clk 0:00:05]}  d4+ {[%clk 0:00:13]} 49. Kd3 {[%clk 0:00:05]}  Bc1 {[%clk 0:00:13]} 50. Kc2 {[%clk 0:00:05]}  Be3 {[%clk 0:00:14]} 51. Kd3 {[%clk 0:00:06]}  Kb5 {[%clk 0:00:13]} 52. b3 {[%clk 0:00:06]}  Kc5 {[%clk 0:00:13]} 53. a4 {[%clk 0:00:05]}  Kb4 {[%clk 0:00:13]} 54. Be6 {[%clk 0:00:05]}  Ka3 {[%clk 0:00:09]} 55. Kc2 {[%clk 0:00:05]}  Kb4 {[%clk 0:00:04]} 56. Bh3 {[%clk 0:00:05]}  b5 {[%clk 0:00:05]} 57. axb5 {[%clk 0:00:04]}  Kxb5 {[%clk 0:00:06]} 58. Bd7+ {[%clk 0:00:04]}  Kb4 {[%clk 0:00:07]} 59. Be6 {[%clk 0:00:04]}  Ka3 {[%clk 0:00:06]} 60. Bh3 {[%clk 0:00:03]}  Bf2 {[%clk 0:00:04]} 61. Bd7 {[%clk 0:00:03]}  Be3 {[%clk 0:00:04]} 62. Be6 {[%clk 0:00:03]}  Kb4 {[%clk 0:00:04]} 63. Bd7 {[%clk 0:00:03]}  Kc5 {[%clk 0:00:05]} 64. Kd3 {[%clk 0:00:03]}  Kd6 {[%clk 0:00:06]} 65. Bh3 {[%clk 0:00:03]}  Ke5 {[%clk 0:00:07]} 66. Bg4 {[%clk 0:00:04]}  Kf4 {[%clk 0:00:08]} 0-1


[Site "https://www.chess.com"]

[Event "Titled Tuesday Blitz April 4 Early 2023"]
[White "a-z30"]
[Black "Sokolovsky, Yahli"]
[BlackFideId "2820242"]
[WhiteElo "2460"]
[BlackElo "2316"]
[Result "1-0"]
[Round "10"]
[TimeControl "180+2"]
[Date "2023.04.04"]
[WhiteClock "0:00:14"]
[BlackClock "0:00:23"]

1. d3 {[%clk 0:02:57]}  d5 {[%clk 0:02:53]} 2. Nf3 {[%clk 0:02:58]}  c5 {[%clk 0:02:46]} 3. g3 {[%clk 0:02:58]}  Nc6 {[%clk 0:02:40]} 4. Bg2 {[%clk 0:02:57]}  Nf6 {[%clk 0:02:35]} 5. O-O {[%clk 0:02:58]}  e5 {[%clk 0:02:30]} 6. c4 {[%clk 0:02:58]}  d4 {[%clk 0:02:23]} 7. e3 {[%clk 0:02:57]}  Be7 {[%clk 0:02:14]} 8. exd4 {[%clk 0:02:57]}  exd4 {[%clk 0:02:10]} 9. Bf4 {[%clk 0:02:52]}  O-O {[%clk 0:02:03]} 10. Ne5 {[%clk 0:02:51]}  Nxe5 {[%clk 0:01:57]} 11. Bxe5 {[%clk 0:02:52]}  Bd6 {[%clk 0:01:42]} 12. Bxf6 {[%clk 0:02:51]}  Qxf6 {[%clk 0:01:37]} 13. Nd2 {[%clk 0:02:52]}  Rb8 {[%clk 0:01:30]} 14. Ne4 {[%clk 0:02:50]}  Qg6 {[%clk 0:01:23]} 15. Re1 {[%clk 0:02:24]}  Bf5 {[%clk 0:01:16]} 16. Nxd6 {[%clk 0:02:20]}  Qxd6 {[%clk 0:01:16]} 17. Be4 {[%clk 0:02:20]}  Bxe4 {[%clk 0:01:08]} 18. Rxe4 {[%clk 0:02:19]}  Rfe8 {[%clk 0:01:06]} 19. Qe2 {[%clk 0:02:18]}  Qc6 {[%clk 0:00:51]} 20. Re1 {[%clk 0:02:08]}  Rxe4 {[%clk 0:00:47]} 21. Qxe4 {[%clk 0:02:09]}  Qxe4 {[%clk 0:00:41]} 22. Rxe4 {[%clk 0:02:10]}  Kf8 {[%clk 0:00:40]} 23. b4 {[%clk 0:02:05]}  b6 {[%clk 0:00:30]} 24. bxc5 {[%clk 0:01:18]}  bxc5 {[%clk 0:00:31]} 25. Re5 {[%clk 0:01:18]}  Rc8 {[%clk 0:00:28]} 26. Kg2 {[%clk 0:01:14]}  Rc6 {[%clk 0:00:17]} 27. a4 {[%clk 0:01:10]}  f6 {[%clk 0:00:15]} 28. Rd5 {[%clk 0:01:09]}  Ke7 {[%clk 0:00:15]} 29. a5 {[%clk 0:01:02]}  Ke6 {[%clk 0:00:13]} 30. g4 {[%clk 0:00:57]}  g6 {[%clk 0:00:07]} 31. Kf3 {[%clk 0:00:57]}  Rc8 {[%clk 0:00:08]} 32. h4 {[%clk 0:00:55]}  Ke7 {[%clk 0:00:08]} 33. Kf4 {[%clk 0:00:52]}  Ke6 {[%clk 0:00:08]} 34. f3 {[%clk 0:00:51]}  Rc6 {[%clk 0:00:06]} 35. Ke4 {[%clk 0:00:34]}  Rc8 {[%clk 0:00:04]} 36. f4 {[%clk 0:00:34]}  Rc6 {[%clk 0:00:04]} 37. f5+ {[%clk 0:00:26]}  gxf5+ {[%clk 0:00:04]} 38. Rxf5 {[%clk 0:00:20]}  Rc8 {[%clk 0:00:05]} 39. Rh5 {[%clk 0:00:16]}  Rc7 {[%clk 0:00:04]} 40. Kf4 {[%clk 0:00:17]}  Kd6 {[%clk 0:00:01]} 41. Kf5 {[%clk 0:00:15]}  Rf7 {[%clk 0:00:02]} 42. Rh6 {[%clk 0:00:13]}  Ke7 {[%clk 0:00:03]} 43. Ke4 {[%clk 0:00:12]}  Rg7 {[%clk 0:00:02]} 44. Kf4 {[%clk 0:00:10]}  Kf7 {[%clk 0:00:02]} 45. Rh5 {[%clk 0:00:11]}  Kg6 {[%clk 0:00:02]} 46. Rxc5 {[%clk 0:00:11]}  Re7 {[%clk 0:00:03]} 47. Rd5 {[%clk 0:00:11]}  Re1 {[%clk 0:00:03]} 48. Rxd4 {[%clk 0:00:11]}  Ra1 {[%clk 0:00:04]} 49. Rd5 {[%clk 0:00:11]}  Rf1+ {[%clk 0:00:04]} 50. Ke4 {[%clk 0:00:11]}  Rg1 {[%clk 0:00:05]} 51. g5 {[%clk 0:00:11]}  f5+ {[%clk 0:00:03]} 52. Kd4 {[%clk 0:00:09]}  f4 {[%clk 0:00:02]} 53. Rd6+ {[%clk 0:00:07]}  Kf5 {[%clk 0:00:03]} 54. Rf6+ {[%clk 0:00:08]}  Kg4 {[%clk 0:00:03]} 55. c5 {[%clk 0:00:07]}  Rd1 {[%clk 0:00:02]} 56. c6 {[%clk 0:00:07]}  f3 {[%clk 0:00:03]} 57. Ke3 {[%clk 0:00:03]}  Re1+ {[%clk 0:00:02]} 58. Kd4 {[%clk 0:00:03]}  Rd1 {[%clk 0:00:01]} 59. Ke4 {[%clk 0:00:04]}  Re1+ {[%clk 0:00:02]} 60. Kd5 {[%clk 0:00:03]}  Kg3 {[%clk 0:00:02]} 61. d4 {[%clk 0:00:04]}  f2 {[%clk 0:00:03]} 62. c7 {[%clk 0:00:03]}  Rc1 {[%clk 0:00:04]} 63. Kd6 {[%clk 0:00:03]}  Rc3 {[%clk 0:00:04]} 64. d5 {[%clk 0:00:03]}  Rf3 {[%clk 0:00:05]} 65. Rxf3+ {[%clk 0:00:03]}  Kxf3 {[%clk 0:00:06]} 66. c8=Q {[%clk 0:00:04]}  f1=Q {[%clk 0:00:07]} 67. Qf8+ {[%clk 0:00:04]}  Kg2 {[%clk 0:00:08]} 68. Qxf1+ {[%clk 0:00:04]}  Kxf1 {[%clk 0:00:09]} 69. Ke5 {[%clk 0:00:04]}  h6 {[%clk 0:00:09]} 70. d6 {[%clk 0:00:05]}  hxg5 {[%clk 0:00:10]} 71. d7 {[%clk 0:00:05]}  gxh4 {[%clk 0:00:11]} 72. d8=Q {[%clk 0:00:05]}  h3 {[%clk 0:00:12]} 73. Qh4 {[%clk 0:00:06]}  Kg2 {[%clk 0:00:13]} 74. Qxh3+ {[%clk 0:00:06]}  Kxh3 {[%clk 0:00:13]} 75. Kd5 {[%clk 0:00:07]}  Kg4 {[%clk 0:00:14]} 76. Kc6 {[%clk 0:00:07]}  Kf5 {[%clk 0:00:15]} 77. Kb7 {[%clk 0:00:08]}  Ke6 {[%clk 0:00:16]} 78. Kxa7 {[%clk 0:00:09]}  Kd6 {[%clk 0:00:16]} 79. Kb7 {[%clk 0:00:10]}  Kc5 {[%clk 0:00:16]} 80. a6 {[%clk 0:00:10]}  Kb5 {[%clk 0:00:17]} 81. a7 {[%clk 0:00:11]}  Kc5 {[%clk 0:00:18]} 82. a8=Q {[%clk 0:00:11]}  Kc4 {[%clk 0:00:19]} 83. Qc8+ {[%clk 0:00:12]}  Kd4 {[%clk 0:00:20]} 84. Qc6 {[%clk 0:00:12]}  Ke3 {[%clk 0:00:20]} 85. Kb6 {[%clk 0:00:13]}  Kf2 {[%clk 0:00:21]} 86. Kc5 {[%clk 0:00:12]}  Ke3 {[%clk 0:00:22]} 87. Kc4 {[%clk 0:00:12]}  Kf2 {[%clk 0:00:23]} 88. Qd5 {[%clk 0:00:12]}  Ke3 {[%clk 0:00:24]} 89. Qd4+ {[%clk 0:00:12]}  Ke2 {[%clk 0:00:24]} 90. Kc3 {[%clk 0:00:13]}  Kf1 {[%clk 0:00:25]} 91. Kd3 {[%clk 0:00:14]}  Ke1 {[%clk 0:00:24]} 92. Qe3+ {[%clk 0:00:15]}  Kf1 {[%clk 0:00:25]} 93. Qd2 {[%clk 0:00:14]}  Kg1 {[%clk 0:00:22]} 94. Ke3 {[%clk 0:00:14]}  Kh1 {[%clk 0:00:23]} 95. Kf3 {[%clk 0:00:14]} 1-0


[Site "https://www.chess.com"]